Cogmind - Beta 16 @@@ ROGUE MODE // 2025.11.06 @ 02:22:09 Player: shapeshifter Result: Self-destructed Performance ------------- Evolutions (4) 2000 Regions Visited (21) 4200 Robots Destroyed (152) 760 Value Destroyed (7272) 7272 Prototype IDs (45) 900 Alien Tech Used (0) 0 Bonus (9298) 9298 TOTAL SCORE: 24430 Bonus ------- High Alert Combat Kills 1383 Follower Combat Kills 3583 Entered Garrisons 800 Used RIF Installer 2000 Network Hubs Disabled 200 Aligned with FarCom 300 Built Enhanced Grunts 300 A7 Reached Mainframe 300 Met R17 at Cetus 500 Friendly Fire -68 Cogmind --------- Core Integrity 177/850 Matter 127/300 Energy 350/350 System Corruption 36% Temperature Cool (0) Movement Immobile (Siege) Location -6/Hub_04(d) Parts ------- > --- POWER (1) -------- Quantum Reactor > --- PROPULSION (4) --- Centrium Heavy Treads Centrium Heavy Treads > --- UTILITY (8) ------ Advanced Heat Sink Huge Storage Unit Centrium Medium Armor Plating Centrium Medium Armor Plating Graphene Brace Improved Hacking Suite Improved Hacking Suite > --- WEAPON (2) ------- Advanced KE Penetrator > --- INVENTORY (25) --- Quantum Reactor Quantum Reactor Centrium Heavy Treads Centrium Heavy Treads Matter Compressor (250) Cloak of Protection Centrium Medium Armor Plating Centrium Medium Armor Plating Relay Coupler [Heavy] (17) Skeleton Box Improved Trap Extractor (5/6 Gamma Bomb) Advanced Variable Charge Gun Advanced Variable Charge Gun Advanced Variable Charge Gun Advanced KE Penetrator XL Autogun Array Remote Datajack Peak State ------------ > --- POWER ------------ Quantum Reactor > --- PROPULSION ------- Centrium Heavy Treads Centrium Heavy Treads > --- UTILITY ---------- Advanced Cryofiber Web Advanced Heat Sink Huge Storage Unit Centrium Medium Armor Plating Centrium Medium Armor Plating Centrium Medium Armor Plating Graphene Brace Relay Coupler [Swarmer] > --- WEAPON ----------- Advanced KE Penetrator Advanced KE Penetrator > --- INVENTORY -------- Quantum Reactor Quantum Reactor Centrium Heavy Treads Centrium Heavy Treads Matter Compressor Cloak of Protection Centrium Medium Armor Plating Centrium Medium Armor Plating Centrium Medium Armor Plating Relay Coupler [Heavy] Skeleton Box Improved Trap Extractor Advanced Variable Charge Gun Advanced Variable Charge Gun Advanced Variable Charge Gun Advanced Variable Charge Gun Advanced KE Penetrator XL Autogun Array Heavy Rocket Launcher Remote Datajack [Rating: 130] Favorites ----------- Power Antimatter Reactor Engine Heavy Ion Engine Power Core Micro Nuclear Core Reactor Antimatter Reactor Propulsion Improved Heavy Treads Treads Improved Heavy Treads Leg Myomer Leg Wheel Armored Huge Wheel Utility Huge Storage Unit Device Seismic Detector Storage Huge Storage Unit Processor Improved Salvage Targeting Computer Hackware Relay Coupler [Grunt] Protection Hardened Heavy Armor Plating Weapon Coil Gun Energy Gun Gatling Laser Energy Cannon Phase Cannon Ballistic Gun Coil Gun Ballistic Cannon Bore Cannon Launcher Heavy Rocket Launcher Special Weapon Remote Datajack Impact Weapon Impact Mace Special Melee Weapon Datajack Build | -11 -10 -10 -9 -9 -9 -8 -8 -8 -7 -7 -7 -7 -7 -7 -6 -6 -6 -6 -6 -6 -6 ------- Run | Yrd Mat Min Mat Min Exi Min Mat Gar Fac Was Fac Gar Fac Gar Fac Gar Fac Ext Cet Arc Hub Slots Evolved 8 | . . . 2 . . . 2 . 2 . . . . . 2 . . . . . . Power . | . . . . . . . . . . . . . . . . . . . . . . Propulsion 2 | . . . . . . . . . 1 . . . . . 1 . . . . . . Utility 6 | . . . 2 . . . 2 . 1 . . . . . 1 . . . . . . Weapon . | . . . . . . . . . . . . . . . . . . . . . . Parts Attached 139 | 7 3 . 17 2 1 2 3 9 2 4 1 9 2 8 9 12 3 25 13 5 2 Power 14 | 1 . . 3 . . . . . . 1 . 1 . . 2 . . 4 2 . . Engine 6 | 1 . . 3 . . . . . . . . 1 . . . . . 1 . . . Core 3 | . . . . . . . . . . . . . . . . . . 3 . . . Reactor 5 | . . . . . . . . . . 1 . . . . 2 . . . 2 . . Propulsion 34 | 2 . . 7 1 . . . 4 . 1 . 1 1 1 1 1 1 10 3 . . Treads 22 | 2 . . 7 . . . . 4 . 1 . 1 1 1 1 1 . . 3 . . Leg 8 | . . . . . . . . . . . . . . . . . . 8 . . . Wheel 4 | . . . . 1 . . . . . . . . . . . . 1 2 . . . Hover . | . . . . . . . . . . . . . . . . . . . . . . Flight . | . . . . . . . . . . . . . . . . . . . . . . Utility 53 | 2 1 . 5 1 . . 1 4 2 . . 5 . 5 3 7 . 7 3 5 2 Device 20 | 1 . . 4 . . . . 1 1 . . 2 . 1 1 2 . 4 . 3 . Storage 3 | 1 1 . . 1 . . . . . . . . . . . . . . . . . Processor 1 | . . . . . . . . 1 . . . . . . . . . . . . . Hackware 18 | . . . . . . . . 1 1 . . 2 . 2 2 5 . 3 . 2 . Protection 11 | . . . 1 . . . 1 1 . . . 1 . 2 . . . . 3 . 2 Artifact . | . . . . . . . . . . . . . . . . . . . . . . Weapon 38 | 2 2 . 2 . 1 2 2 1 . 2 1 2 1 2 3 4 2 4 5 . . Energy Gun 4 | 2 . . . . . . . . . . 1 . . . . . . . 1 . . Energy Cannon 1 | . . . . . . . . . . 1 . . . . . . . . . . . Ballistic Gun 24 | . 2 . 2 . . 2 1 1 . . . 2 . 1 1 4 2 2 4 . . Ballistic Cannon 1 | . . . . . . . . . . . . . . . . . . 1 . . . Launcher 2 | . . . . . . . 1 . . . . . . . 1 . . . . . . Special Weapon 3 | . . . . . . . . . . . . . 1 1 . . . 1 . . . Impact Weapon 1 | . . . . . . . . . . . . . . . 1 . . . . . . Slashing Weapon . | . . . . . . . . . . . . . . . . . . . . . . Piercing Weapon . | . . . . . . . . . . . . . . . . . . . . . . Special Melee Weapon 2 | . . . . . 1 . . . . 1 . . . . . . . . . . . Unidentified Prototypes 8 | . . . 1 . . . . . . . . . . . 2 . . 1 4 . . Corrupted Parts 7 | . . . . . . . . . . . . . . . . . . 1 6 . . System Corruption 33 | . . . . . . . . . . . . . . . . . . 10 23 . . Parts Lost 35 | . . . 3 . . . . 2 . . . 1 . 4 2 4 . 15 . . 4 Power 4 | . . . 1 . . . . . . . . . . . 1 . . 2 . . . Propulsion 7 | . . . . . . . . 1 . . . . . . . 2 . 4 . . . Utility 13 | . . . 1 . . . . 1 . . . . . 3 . 2 . 4 . . 2 Weapon 11 | . . . 1 . . . . . . . . 1 . 1 1 . . 5 . . 2 Highest Loss Streak 5 | . . . 1 . . . . 2 . . . 1 . 3 1 2 . 5 . . 4 To Critical Strikes . | . . . . . . . . . . . . . . . . . . . . . . Average Backups 17 | 4 7 10 14 15 21 20 19 20 17 18 17 16 17 17 16 17 19 14 17 20 19 Power 1 | . 1 1 1 . . . . . . 1 1 2 2 2 1 1 1 . . 2 2 Propulsion 3 | 1 3 4 6 5 8 8 8 6 3 3 4 3 3 2 1 . . 1 2 2 2 Utility 7 | . 1 2 2 4 5 5 4 7 9 8 8 8 8 7 9 10 10 7 5 7 7 Weapon 3 | . 1 2 2 5 7 6 5 4 4 4 2 1 2 2 2 2 4 3 7 6 5 Tool/Special . | . . . . . . . . . . . . . . . . . . . . . . Unused Backups 44 | . 4 . 3 . 1 . . 2 . 4 . 7 1 4 . . 1 4 3 1 9 Power 4 | . . . 1 . . . . . . 1 . . 1 . . . . . . . 1 Propulsion 15 | . 2 . 1 . . . . 1 . 1 . 4 . . . . . 4 1 . 1 Utility 17 | . 1 . . . 1 . . 1 . 2 . 3 . 3 . . 1 . 1 . 4 Weapon 6 | . 1 . . . . . . . . . . . . . . . . . 1 1 3 Tool/Special 2 | . . . 1 . . . . . . . . . . 1 . . . . . . . Average Slot Usage (%) 81 | . 97 100 87 97 76 78 77 82 91 89 84 80 83 71 64 74 79 75 82 85 85 Engine 4 | . 14 14 11 11 11 11 9 9 7 4 . 2 . . . . . 1 . . . Reactor 3 | . . . . . . . . . . 2 7 4 7 7 6 6 6 2 2 6 6 Treads 12 | . 28 28 22 17 . . . 3 23 20 15 15 14 15 12 12 6 2 10 13 13 Wheel 2 | . . . . 1 11 11 9 7 . . . . . . . . 5 4 . . . Device 16 | . 14 14 20 22 22 22 18 20 8 7 7 14 15 9 10 16 20 23 20 23 18 Storage 8 | . 14 14 11 11 11 11 9 9 7 7 7 7 7 7 6 6 6 6 6 6 6 Hackware 8 | . . . . . . . . 1 13 15 15 10 15 9 6 17 20 9 10 13 18 Protection 6 | . . . . 11 11 11 14 12 7 7 7 7 7 6 6 1 . . 12 8 8 Ballistic Gun 11 | . 20 28 22 22 . 2 17 17 15 4 7 7 14 10 5 10 12 8 7 13 12 Peak Build Rating 130 | 7 10 11 21 27 29 33 41 43 46 62 62 73 73 69 88 98 86 97 130 130 128 Average Rating 58 | 5 9 10 16 22 25 29 38 40 45 51 62 66 72 65 81 85 84 68 107 122 122 On Entrance 53 | . 7 10 11 21 27 29 33 41 41 46 62 62 73 68 65 88 77 86 69 130 122 Avg Prop Armor Cover (%) 16 | . . . . . . . . . . . . . . . . . 16 16 . . . Naked Turns . | . . . . . . . . . . . . . . . . . . . . . . Heaviest Build 136 | 13 32 32 40 100 95 100 121 120 116 128 128 130 127 127 127 127 110 109 136 136 122 Greatest Support 160 | 40 40 40 46 46 28 28 28 46 69 93 93 117 117 110 150 150 75 95 160 160 160 Greatest Overweight (x) 35 | . . . . 3 3 3 4 4 1 1 1 1 1 1 . 1 3 35 1 . . Average Overweight (x) 1 | . . . . . 3 3 3 3 1 1 1 . 1 1 . . 2 2 . . . Largest Inventory Capacity 25 | 8 15 15 15 25 25 25 25 25 25 25 25 25 25 25 25 25 25 25 25 25 25 Average Capacity 23 | 7 9 15 15 16 25 25 25 25 25 25 25 25 25 25 25 25 25 25 25 25 25 Most Carried 25 | 7 9 12 15 21 25 25 24 25 25 25 25 25 25 25 24 25 25 25 25 25 25 Average Carried 21 | 4 7 10 14 16 23 24 22 24 23 24 25 24 24 23 20 21 24 18 21 24 24 Final Capacity 25 | 8 15 15 15 25 25 25 25 25 25 25 25 25 25 25 25 25 25 25 25 25 25 Final Carried 25 | 6 9 12 15 21 25 24 22 25 25 25 25 25 25 22 21 25 25 16 25 25 22 Class Distribution -------------------- 51% | Mutant 27% | Bothacker-Mutant 14% | Scavenger-Mutant 3% | Commander-Mutant Dominant Class ---------------- Mutant | -10/Materials Mutant | -10/Mines Mutant | -9/Materials Mutant | -9/Mines Mutant | -9/Exiles Mutant | -8/Mines Mutant | -8/Materials Mutant | -8/Garrison Mutant | -7/Factory Mutant | -7/Waste Mutant | -7/Factory Mutant | -7/Garrison Scavenger-Mutant | -7/Factory Bothacker-Mutant | -7/Garrison Bothacker-Mutant | -6/Factory Bothacker-Mutant | -6/Garrison Bothacker-Mutant | -6/Factory Bothacker-Mutant | -6/Extension Commander-Mutant | -6/Cetus Scavenger-Mutant | -6/Archives Scavenger-Mutant | -6/Hub_04(d) Resources | -11 -10 -10 -9 -9 -9 -8 -8 -8 -7 -7 -7 -7 -7 -7 -6 -6 -6 -6 -6 -6 -6 ----------- Run | Yrd Mat Min Mat Min Exi Min Mat Gar Fac Was Fac Gar Fac Gar Fac Gar Fac Ext Cet Arc Hub Matter Collected 7151 | 270 . 132 339 146 156 16 . 1059 301 100 . 752 79 668 259 806 167 1252 275 234 140 Remotely . | . . . . . . . . . . . . . . . . . . . . . . Salvage Created 6663 | 168 . 190 669 140 . 16 3 1082 412 . . 1122 73 670 202 608 74 332 159 319 424 Parts 407 | 13 . 19 42 6 . 5 1 75 20 . . 60 4 50 10 35 5 16 10 22 14 Haulers Intercepted 2 | . . . 1 . . . . . . . . . . . 1 . . . . . . Recyclers Shooed 2 | . . . 1 . . . . . . . . . . . . . . 1 . . . Parts Field Recycled . | . . . . . . . . . . . . . . . . . . . . . . Retrieved Matter . | . . . . . . . . . . . . . . . . . . . . . . Parts Self-Destructed . | . . . . . . . . . . . . . . . . . . . . . . Prevented . | . . . . . . . . . . . . . . . . . . . . . . Parts Restored . | . . . . . . . . . . . . . . . . . . . . . . Kills | -11 -10 -10 -9 -9 -9 -8 -8 -8 -7 -7 -7 -7 -7 -7 -6 -6 -6 -6 -6 -6 -6 ------- Run | Yrd Mat Min Mat Min Exi Min Mat Gar Fac Was Fac Gar Fac Gar Fac Gar Fac Ext Cet Arc Hub Combat Hostiles Destroyed 131 | . . 5 14 3 . . 4 33 7 . . 10 1 18 2 15 3 6 2 2 6 Guns 108 | . . 5 14 3 . . . 25 7 . . 10 1 18 2 10 1 6 2 2 2 AOE 23 | . . . . . . . 4 8 . . . . . . . 5 2 . . . 4 Classes Destroyed 16 | 2 . 2 4 . . . . 2 1 . . 1 . . . . . 2 . 1 1 Worker 2 | . . 1 . . . . . . . . . . . . 1 . . . . . . Builder 1 | . . . . . . . . . . . . . . . . . . 1 . . . Tunneler 5 | 3 . 1 . . . 1 . . . . . . . . . . . . . . . Hauler 2 | . . . 1 . . . . . . . . . . . 1 . . . . . . Recycler 3 | 1 . 1 . . . . . . . . . . . . . . . . . . 1 Operator 3 | . . . . . . . . . . . . . . . . . . . . 3 . Watcher 4 | . . . 1 . . . . . . . . . . . 1 . 1 . 1 . . Swarmer 48 | . . 5 2 . . . 4 14 . . . 1 . 8 . 10 2 2 . . . Grunt 41 | . . . 6 3 . . . 11 6 . . 4 . 2 1 4 . 1 . . 3 Brawler 2 | . . . . . . . . . 1 . . . . . 1 . . . . . . Duelist 1 | . . . . . . . . 1 . . . . . . . . . . . . . Protector 2 | . . . . . . . . . . . . . . . . . . . . . 2 Sentry 16 | . . . 6 . . . . 6 . . . . 1 1 . . . . . 2 . Hunter 6 | . . . . . . . . 1 . . . 2 . 1 . 1 . 1 . . . Programmer 10 | . . . . . . . . . . . . 3 . 6 . . 1 . . . . Behemoth 2 | . . . . . . . . . . . . . . . . . . 2 . . . Cetus Guard 2 | . . . . . . . . . . . . . . . . . . . 2 . . Lightning 1 | . . . . . . . . . . . . . . . . . . . . . 1 Thug 1 | . . . . . . . . . . . . . . . . . . . . 1 . Best Kill Streak 10 | 3 . 3 5 3 . 1 4 10 3 . . 3 1 7 2 7 3 2 3 2 7 Combat Bots Only 10 | . . 3 5 3 . . 4 10 3 . . 3 1 7 1 7 2 2 2 2 6 Max Kills in Single Turn 4 | 1 . 1 1 1 . 1 2 4 1 . . 1 1 2 1 4 2 2 1 1 2 Gunslinging 1 | . . . . . . . . . . . . . . 1 . . . . . . . Exploded 4 | . . . . . . . 2 4 . . . . . . . 4 1 . . . 1 Melee . | . . . . . . . . . . . . . . . . . . . . . . Uniques/NPCs Destroyed . | . . . . . . . . . . . . . . . . . . . . . . Combat | -11 -10 -10 -9 -9 -9 -8 -8 -8 -7 -7 -7 -7 -7 -7 -6 -6 -6 -6 -6 -6 -6 -------- Run | Yrd Mat Min Mat Min Exi Min Mat Gar Fac Was Fac Gar Fac Gar Fac Gar Fac Ext Cet Arc Hub Hostile Shots Fired 1113 | . 1 19 83 9 . . 20 164 20 1 . 104 2 131 19 111 13 214 11 8 183 Missed 318 | . . 5 26 1 . . 9 31 7 . . 35 1 28 3 38 5 83 5 5 36 Hits 795 | . 1 14 57 8 . . 11 133 13 1 . 69 1 103 16 73 8 131 6 3 147 Melee 10 | . . . . . . . . 6 . 1 . . . . 3 . . . . . . Projectile 785 | . 1 14 57 8 . . 11 127 13 . . 69 1 103 13 73 8 131 6 3 147 Critical Strikes 31 | . . . . . . . . 3 2 1 . 1 . 2 1 4 1 5 . . 11 Actively Blocked 18 | . . . . . . . . . . . . . . . . 1 1 5 . . 11 Damage Taken 13453 | . 14 119 734 64 . . 64 1519 219 36 . 1066 47 1513 594 1243 119 2556 195 67 3284 Core 1212 | . . 38 87 23 . . 12 212 47 . . 38 . 82 . 83 14 364 . 20 192 Absorbed by Shields 830 | . . . 50 24 . . 27 480 . . . . . . . . . 194 55 . . Reduced by Siege Mode 234 | . . . . . . . . . . . . . . . . . . . . . 234 Regen/Repaired (Parts) 34 | . . . . . . . . . . 34 . . . . . . . . . . . Core Remaining (%) 78 | 100 . 84 . . . 72 . 59 . . . . . 76 . . . . . . . Volleys Fired 701 | 11 1 16 52 6 . 1 6 113 21 2 4 143 7 75 22 67 7 94 8 29 16 Largest 2 | 2 2 2 2 2 . 2 2 2 2 1 2 2 2 2 1 2 2 2 2 2 2 Hottest 240 | 80 46 46 46 46 . 50 50 58 50 85 110 105 63 60 39 56 58 58 240 70 70 Shots Fired 1141 | 22 2 32 104 12 . 2 9 221 42 2 8 176 14 128 22 100 13 138 15 55 24 Gun 1019 | 22 2 32 104 12 . 2 6 214 42 . 4 155 14 121 13 88 11 89 15 55 18 Cannon 29 | . . . . . . . . . . 2 4 21 . . . . . 2 . . . Launcher 24 | . . . . . . . 3 7 . . . . . . 1 5 2 . . . 6 Special 69 | . . . . . . . . . . . . . . 7 8 7 . 47 . . . Kinetic 976 | . 2 32 104 12 . 2 6 214 42 . 4 133 14 121 13 88 11 91 14 55 18 Thermal 72 | 22 . . . . . . . . . 2 4 43 . . . . . . 1 . . Explosive 24 | . . . . . . . 3 7 . . . . . . 1 5 2 . . . 6 Electromagnetic . | . . . . . . . . . . . . . . . . . . . . . . Robot Hit Streak 26 | 4 1 7 8 3 . 2 2 13 13 . 5 26 2 10 9 8 2 16 3 5 7 Robot Miss Streak 7 | 3 1 4 6 3 . . 4 7 2 . 1 5 1 3 2 4 2 5 7 6 4 Penetration Max 2 | . . . . . . . . . . . . 2 1 1 . . . 1 1 1 1 Secondary Targets 19 | . . 2 1 1 . . . 6 1 . . 2 . 3 . 3 . . . . . Max Gunslinging Chain 1 | . . 1 1 1 . . . 1 1 . . 1 . 1 . 1 . . . . . Shots Hit Robots 625 | 11 1 16 62 6 4 1 4 95 31 8 6 122 4 59 17 35 6 96 6 24 11 Core Hits 311 | 5 . 8 27 4 . 1 3 53 16 . . 55 2 27 7 28 7 22 3 14 29 Critical Kills 8 | . . . . . . . . . . . . . . . . . . . 2 4 2 Critical Parts Destroyed 15 | . . . 1 . . . . . . . . 2 . 2 1 . . 4 2 2 1 Critical Strikes 25 | . . . 1 . . . . 1 . . . 2 . 2 1 . . 4 4 7 3 Destroy 25 | . . . 1 . . . . 1 . . . 2 . 2 1 . . 4 4 7 3 Melee Attacks 13 | . . . . . 4 . . . . 9 . . . . . . . . . . . Impact . | . . . . . . . . . . . . . . . . . . . . . . Slashing . | . . . . . . . . . . . . . . . . . . . . . . Piercing . | . . . . . . . . . . . . . . . . . . . . . . Sneak Attacks 6 | . . . . . 4 . . . . 2 . . . . . . . . . . . Combat Hostiles 2 | . . . . . . . . . . 2 . . . . . . . . . . . Follow-up Attacks . | . . . . . . . . . . . . . . . . . . . . . . Damage Inflicted 14566 | 118 14 244 1011 86 . 14 449 1998 511 . 153 2633 167 1434 245 1350 413 1272 289 774 1391 Guns 11684 | 118 14 244 1011 86 . 14 36 1654 511 . 33 2541 167 1434 245 733 144 1272 289 774 364 Cannons 212 | . . . . . . . . . . . 120 92 . . . . . . . . . Explosions 2670 | . . . . . . . 413 344 . . . . . . . 617 269 . . . 1027 Melee . | . . . . . . . . . . . . . . . . . . . . . . Ramming . | . . . . . . . . . . . . . . . . . . . . . . Kinetic 11158 | . 14 244 1011 86 . 14 36 1654 511 . 33 2133 167 1434 245 733 144 1272 289 774 364 Thermal 738 | 118 . . . . . . . . . . 120 500 . . . . . . . . . Explosive 2670 | . . . . . . . 413 344 . . . . . . . 617 269 . . . 1027 Electromagnetic . | . . . . . . . . . . . . . . . . . . . . . . Impact . | . . . . . . . . . . . . . . . . . . . . . . Slashing . | . . . . . . . . . . . . . . . . . . . . . . Piercing . | . . . . . . . . . . . . . . . . . . . . . . Highest Corruption 37 | . . . 1 1 1 1 . . . . . 1 1 4 1 1 1 14 37 37 35 Average Corruption 5 | . . . 1 1 1 1 . . . . . 1 1 3 1 1 1 8 24 28 20 Corruption Purged 19 | . . . . . . . . . . . . . . . . . . . . 19 . Corruption Blocked . | . . . . . . . . . . . . . . . . . . . . . . Effects 166 | . . . . 4 3 4 . . . . . 4 3 30 4 10 2 33 23 36 10 Message Errors 35 | . . . . 2 1 1 . . . . . . 1 6 3 . . 8 4 5 4 Matter Fused 42 | . . . . . 1 . . . . . . 1 . 8 1 3 . 14 6 5 3 Heat Flow Errors 23 | . . . . 1 . 3 . . . . . . 1 7 . . . 2 3 6 . Energy Discharges 15 | . . . . . . . . . . . . 1 1 4 . 1 1 2 2 3 . Parts Rejected 1 | . . . . . . . . . . . . . . . . . . 1 . . . Parts Fused 3 | . . . . . . . . . . . . . . 1 . 2 . . . . . Data Loss (minor) 18 | . . . . . . . . . . . . 1 . 2 . 2 . 2 6 5 . Data Loss (major) 7 | . . . . 1 1 . . . . . . 1 . . . . . . . 4 . Misfires 8 | . . . . . . . . . . . . . . 2 . . 1 2 1 2 . Alerts 3 | . . . . . . . . . . . . . . . . . . 1 . 1 1 Weapon Failures 11 | . . . . . . . . . . . . . . . . 2 . 1 1 5 2 Overload Shots 1 | . . . . . . . . . . . . . . . . . . . 1 . . Overflow Damage 114 | . . . . . . . 55 44 . . . . . . . 15 . . . . . Projectiles . | . . . . . . . . . . . . . . . . . . . . . . Explosions 114 | . . . . . . . 55 44 . . . . . . . 15 . . . . . Melee . | . . . . . . . . . . . . . . . . . . . . . . Knockbacks . | . . . . . . . . . . . . . . . . . . . . . . Impact . | . . . . . . . . . . . . . . . . . . . . . . Kinetic . | . . . . . . . . . . . . . . . . . . . . . . Secondary . | . . . . . . . . . . . . . . . . . . . . . . Self-Inflicted Damage 186 | . . . . . . . . 85 . . . . . . . 71 . . . . 30 Shots 5 | . . . . . . . . 3 . . . . . . . 1 . . . . 1 Rammed . | . . . . . . . . . . . . . . . . . . . . . . Targets Rammed . | . . . . . . . . . . . . . . . . . . . . . . Kicked . | . . . . . . . . . . . . . . . . . . . . . . Crushed . | . . . . . . . . . . . . . . . . . . . . . . Highest Temperature 409 | 72 . . 2 271 . 154 48 222 98 48 249 330 223 409 . . . 20 40 36 . Average Temperature 71 | 28 . . 2 140 . 71 24 72 43 30 134 67 56 92 . . . 20 20 17 . Received Heat Transfer 2136 | . 9 . 246 32 . . . 511 153 . . 126 . 144 87 321 . 399 9 9 90 Effects 2 | . . . . . . . . . . . . . . 2 . . . . . . . Shutdowns 1 | . . . . . . . . . . . . . . 1 . . . . . . . Energy Bleed 1 | . . . . . . . . . . . . . . 1 . . . . . . . Siege Activations 1 | . . . . . . . . . . . . . . . . . . . . . 1 Total Turns 27 | . . . . . . . . . . . . . . . . . . . . . 27 Longest Duration 27 | . . . . . . . . . . . . . . . . . . . . . 27 Martial Activations . | . . . . . . . . . . . . . . . . . . . . . . Shielding Activations . | . . . . . . . . . . . . . . . . . . . . . . Robots Disrupted . | . . . . . . . . . . . . . . . . . . . . . . Combat Hostiles . | . . . . . . . . . . . . . . . . . . . . . . Robots Corrupted . | . . . . . . . . . . . . . . . . . . . . . . Combat Hostiles . | . . . . . . . . . . . . . . . . . . . . . . Parts Fried . | . . . . . . . . . . . . . . . . . . . . . . Impact Corruptions . | . . . . . . . . . . . . . . . . . . . . . . Robots Melted . | . . . . . . . . . . . . . . . . . . . . . . Combat Hostiles . | . . . . . . . . . . . . . . . . . . . . . . Parts Melted . | . . . . . . . . . . . . . . . . . . . . . . Heat Transferred 1420 | 275 . . . . . . . . . . 148 997 . . . . . . . . . Parts Sabotaged . | . . . . . . . . . . . . . . . . . . . . . . Parts Stolen . | . . . . . . . . . . . . . . . . . . . . . . Parts Stripped . | . . . . . . . . . . . . . . . . . . . . . . Power Chain Reactions . | . . . . . . . . . . . . . . . . . . . . . . Alert | -11 -10 -10 -9 -9 -9 -8 -8 -8 -7 -7 -7 -7 -7 -7 -6 -6 -6 -6 -6 -6 -6 ------- Run | Yrd Mat Min Mat Min Exi Min Mat Gar Fac Was Fac Gar Fac Gar Fac Gar Fac Ext Cet Arc Hub Maximum Alert Level 5 | . . . 1 . . . . 3 2 1 . 5 3 4 3 4 2 1 . . . Low Security (%) 45 | 100 100 100 95 100 . 100 100 14 . 92 100 7 . . . . . 85 100 100 100 Level 1 6 | . . . 4 . . . . 35 . 7 . 12 . . . . . 14 . . . Level 2 9 | . . . . . . . . 10 100 . . 3 . 14 . 8 100 . . . . Level 3 25 | . . . . . . . . 39 . . . 31 100 34 100 78 . . . . . Level 4 12 | . . . . . . . . . . . . 40 . 50 . 12 . . . . . Level 5 . | . . . . . . . . . . . . 4 . . . . . . . . . High Security . | . . . . . . . . . . . . . . . . . . . . . . Max Security . | . . . . . . . . . . . . . . . . . . . . . . Peak Influence 1636 | 10 16 106 208 62 . 5 124 1022 641 210 4 1636 885 1529 1092 1130 599 266 185 132 182 Initial 858 | . . 1 37 55 . . . 67 536 210 4 . 858 536 802 690 592 266 100 35 . Average 507 | . 2 30 89 13 . . 74 524 589 95 . 970 823 1104 992 980 525 106 122 48 86 Influence Increases 8366 | 20 35 331 599 70 . 5 134 975 205 58 . 1776 270 1073 495 500 237 675 275 221 412 Destroy 0b10 Robot/C 4225 | . . 220 320 60 . . 80 660 140 . . 760 140 580 160 310 75 390 120 60 150 Destroy 0b10 Robot/NC 192 | 20 . 15 25 . . 5 . . . . . 40 . . 15 8 16 12 8 12 16 Destroy Leader 502 | . . 40 98 10 . . 10 20 30 . . 40 50 40 44 18 26 52 . . 24 Allied During Kill 1030 | . . 41 30 . . . . . . . . 333 31 79 30 11 8 175 116 72 104 Successful Hack 141 | . 20 . 36 . . . . . . . . 14 42 14 . . 11 4 . . . Select Force Hacks 58 | . . . . . . . . . 20 . . . . . . . . . . . 38 Disable Machine 471 | . 15 15 . . . . 15 . . . . 60 . . 210 48 24 . 12 60 12 Anti-Garrison Action 838 | . . . . . . . . 200 . . . 350 . 250 . 38 . . . . . Destroy Structure 672 | . . . . . . . 14 80 . 58 . 164 7 110 36 52 65 6 19 17 44 Lose Combat Pursuer 237 | . . . 90 . . . 15 15 15 . . 15 . . . 15 12 36 . . 24 Influence Decreases 8204 | 20 30 238 553 176 38 5 30 57 626 653 6 140 1140 310 1037 357 824 1039 365 310 250 Entered New Map 4088 | . . 4 61 89 38 . . 37 486 391 2 . 778 230 727 297 538 277 79 54 . Time Decay 3014 | 20 30 234 402 87 . 5 30 . 140 262 4 . 342 . 270 . 286 410 206 236 50 Lost Part 324 | . . . 30 . . . . 20 . . . 10 . 40 20 40 . 124 . . 40 Lost Ally 778 | . . . 60 . . . . . . . . 130 20 40 20 20 . 228 80 20 160 Squads Dispatched 18 | . 1 . 2 1 . . . . 1 . 1 . 2 . 2 . 2 3 . . 3 Investigation 5 | . . . . 1 . . . . 1 . . . . . . . 1 1 . . 1 Extermination 5 | . . . . . . . . . . . 1 . 2 . 1 . 1 . . . . Reinforcement 8 | . 1 . 2 . . . . . . . . . . . 1 . . 2 . . 2 Assault . | . . . . . . . . . . . . . . . . . . . . . . Garrison . | . . . . . . . . . . . . . . . . . . . . . . Intercept . | . . . . . . . . . . . . . . . . . . . . . . Searches Triggered . | . . . . . . . . . . . . . . . . . . . . . . Construction Impeded 2 | . . . . . . . . . . . . . . . . . . 1 . . 1 Haulers Reinforced 1 | . . . . . . . . . . . . . . . 1 . . . . . . Active Scanning Responses . | . . . . . . . . . . . . . . . . . . . . . . Cargo Convoy Interrupts . | . . . . . . . . . . . . . . . . . . . . . . Stealth | -11 -10 -10 -9 -9 -9 -8 -8 -8 -7 -7 -7 -7 -7 -7 -6 -6 -6 -6 -6 -6 -6 --------- Run | Yrd Mat Min Mat Min Exi Min Mat Gar Fac Was Fac Gar Fac Gar Fac Gar Fac Ext Cet Arc Hub Distress Signals 11 | . . . 3 . . . 1 . . . . . . . . . 1 . 2 . 4 Communications Jammed . | . . . . . . . . . . . . . . . . . . . . . . Distress Signals . | . . . . . . . . . . . . . . . . . . . . . . Times Spotted 322 | . 4 12 26 6 . . 6 30 8 6 . 38 7 27 16 20 7 36 10 38 25 Peak Tracking Total 19 | . 3 3 7 3 . . 5 5 3 2 . 8 2 5 3 7 4 6 5 2 19 Tactical Retreats 15 | . . . 4 . . . 1 1 1 . . 1 . . . 1 1 3 . . 2 Traps | -11 -10 -10 -9 -9 -9 -8 -8 -8 -7 -7 -7 -7 -7 -7 -6 -6 -6 -6 -6 -6 -6 ------- Run | Yrd Mat Min Mat Min Exi Min Mat Gar Fac Was Fac Gar Fac Gar Fac Gar Fac Ext Cet Arc Hub Traps Triggered 21 | . . . 1 . . . . 2 2 . . 5 2 3 1 1 1 3 . . . Indirectly . | . . . . . . . . . . . . . . . . . . . . . . Trap Hack Attempts . | . . . . . . . . . . . . . . . . . . . . . . Triggered . | . . . . . . . . . . . . . . . . . . . . . . Disarmed 6 | . . . . . . . 6 . . . . . . . . . . . . . . Reprogrammed . | . . . . . . . . . . . . . . . . . . . . . . Reused . | . . . . . . . . . . . . . . . . . . . . . . Traps Extracted . | . . . . . . . . . . . . . . . . . . . . . . Installed . | . . . . . . . . . . . . . . . . . . . . . . Triggered . | . . . . . . . . . . . . . . . . . . . . . . Most Traps Carried 5 | . . . . . . . . . . . . 5 5 5 5 5 5 5 5 5 5 Machines | -11 -10 -10 -9 -9 -9 -8 -8 -8 -7 -7 -7 -7 -7 -7 -6 -6 -6 -6 -6 -6 -6 ---------- Run | Yrd Mat Min Mat Min Exi Min Mat Gar Fac Was Fac Gar Fac Gar Fac Gar Fac Ext Cet Arc Hub Machines Disabled 43 | . 1 1 . . . . 1 3 . . . 5 . 3 14 5 2 1 1 5 1 Max in Single Turn 2 | . 1 1 . . . . 1 2 . . . 1 . 1 . 1 . . 1 1 1 Garrison Relay 6 | . . . . . . . . 1 . . . 1 . 3 . 1 . . . . . Phase Generator 1 | . . . . . . . . 1 . . . . . . . . . . . . . Network Hub 1 | . . . . . . . . . . . . . . . . . . . . . 1 Energy Cycler 1 | . . . . . . . . . . . . . . . . . . 1 . . . Machines Repaired . | . . . . . . . . . . . . . . . . . . . . . . Machines Dismantled . | . . . . . . . . . . . . . . . . . . . . . . Machines Sabotaged 1 | . . . . . . . . . . . . . . . . . . . . . 1 Overloaded Fab Kills . | . . . . . . . . . . . . . . . . . . . . . . Hacking | -11 -10 -10 -9 -9 -9 -8 -8 -8 -7 -7 -7 -7 -7 -7 -6 -6 -6 -6 -6 -6 -6 --------- Run | Yrd Mat Min Mat Min Exi Min Mat Gar Fac Was Fac Gar Fac Gar Fac Gar Fac Ext Cet Arc Hub Machines Accessed 40 | . 2 1 5 1 2 . 2 1 1 . 3 1 6 3 1 1 5 4 . . 1 Terminals 24 | . 2 . 3 . . . 1 1 . . 1 1 3 3 . 1 3 4 . . 1 Fabricators 4 | . . . . . . . . . 1 . . . 1 . . . 2 . . . . Repair Stations . | . . . . . . . . . . . . . . . . . . . . . . Recycling Units 1 | . . . . . . . . . . . 1 . . . . . . . . . . Scanalyzers 3 | . . . 2 . . . . . . . . . 1 . . . . . . . . Garrison Access 4 | . . . . . . . 1 . . . 1 . 1 . 1 . . . . . . Total Hacks 71 | . 4 1 11 1 2 . 4 2 3 . 4 1 11 5 1 1 9 9 . . 2 Successful 29 | . 2 1 6 1 2 . 2 1 1 . 2 1 3 1 1 . 3 1 . . 1 Failed 42 | . 2 . 5 . . . 2 1 2 . 2 . 8 4 . 1 6 8 . . 1 Catastrophic 9 | . 1 . . . . . . . 1 . 1 . 1 . . . 2 3 . . . Database Lockouts . | . . . . . . . . . . . . . . . . . . . . . . Manual 13 | . 2 . 3 . 1 . 1 . 1 . . . . . . . 1 1 1 . 2 Terminals 46 | . 4 . 7 . . . 3 2 . . 1 1 5 5 . 1 6 9 . . 2 Fabricators 8 | . . . . . . . . . 3 . . . 2 . . . 3 . . . . Repair Stations . | . . . . . . . . . . . . . . . . . . . . . . Recycling Units 2 | . . . . . . . . . . . 2 . . . . . . . . . . Scanalyzers 7 | . . . 4 . . . . . . . . . 3 . . . . . . . . Garrison Access 4 | . . . . . . . 1 . . . 1 . 1 . 1 . . . . . . Terminal Hacks 16 | . 1 1 4 1 2 . 1 1 . . . 1 1 1 . . 1 1 . . . Record 1 | . . . . . 1 . . . . . . . . . . . . . . . . Open Door 2 | . . 1 . 1 . . . . . . . . . . . . . . . . . Branch Access Points 2 | . 1 . 1 . . . . . . . . . . . . . . . . . . Emergency Access Points 3 | . . . . . . . . . . . . 1 . 1 . . 1 . . . . Garrison Index 1 | . . . . . . . . . . . . . 1 . . . . . . . . Disarm Traps 1 | . . . . . . . 1 . . . . . . . . . . . . . . Zone Layout 4 | . . . 3 . . . . . . . . . . . . . . 1 . . . Garrison Registry 1 | . . . . . . . . 1 . . . . . . . . . . . . . Proto ID Catalog 1 | . . . . . 1 . . . . . . . . . . . . . . . . Fabricator Hacks 2 | . . . . . . . . . . . . . . . . . 2 . . . . Network Status 2 | . . . . . . . . . . . . . . . . . 2 . . . . Repair Station Hacks . | . . . . . . . . . . . . . . . . . . . . . . Recycling Unit Hacks 1 | . . . . . . . . . . . 1 . . . . . . . . . . Retrieve Components 1 | . . . . . . . . . . . 1 . . . . . . . . . . Scanalyzer 3 | . . . 2 . . . . . . . . . 1 . . . . . . . . Retrieve Study 3 | . . . 2 . . . . . . . . . 1 . . . . . . . . Garrison Access Hacks 4 | . . . . . . . 1 . . . 1 . 1 . 1 . . . . . . Unlock Access 4 | . . . . . . . 1 . . . 1 . 1 . 1 . . . . . . Unauthorized Hacks 3 | . 1 . . . . . . . 1 . . . . . . . . . . . 1 Terminals 2 | . 1 . . . . . . . . . . . . . . . . . . . 1 Skim 1 | . 1 . . . . . . . . . . . . . . . . . . . . Sabotage 1 | . . . . . . . . . . . . . . . . . . . . . 1 Fabricators 1 | . . . . . . . . . 1 . . . . . . . . . . . . Download 1 | . . . . . . . . . 1 . . . . . . . . . . . . Repair Stations . | . . . . . . . . . . . . . . . . . . . . . . Recycling Units . | . . . . . . . . . . . . . . . . . . . . . . Scanalyzers . | . . . . . . . . . . . . . . . . . . . . . . Garrison Access . | . . . . . . . . . . . . . . . . . . . . . . Data Cores Recovered 1 | . . . 1 . . . . . . . . . . . . . . . . . . Used . | . . . . . . . . . . . . . . . . . . . . . . Hacking Detections 31 | . 2 . 5 . . . 1 1 1 . 1 . 5 3 . 1 5 4 1 . 1 Full Trace Events 2 | . . . . . . . . . . . . . . . . . 1 1 . . . Feedback Events . | . . . . . . . . . . . . . . . . . . . . . . Feedback Blocked . | . . . . . . . . . . . . . . . . . . . . . . Robot Schematics Acquired 1 | . . . . . . . . . 1 . . . . . . . . . . . . Robots Built . | . . . . . . . . . . . . . . . . . . . . . . Authchips . | . . . . . . . . . . . . . . . . . . . . . . Time . | . . . . . . . . . . . . . . . . . . . . . . Total Robot Build Rating . | . . . . . . . . . . . . . . . . . . . . . . Part Schematics Acquired . | . . . . . . . . . . . . . . . . . . . . . . Parts Built . | . . . . . . . . . . . . . . . . . . . . . . Authchips . | . . . . . . . . . . . . . . . . . . . . . . Time . | . . . . . . . . . . . . . . . . . . . . . . Total Part Build Rating . | . . . . . . . . . . . . . . . . . . . . . . Part Studies Acquired 3 | . . . 2 . . . . . . . . . 1 . . . . . . . . Parts Repaired . | . . . . . . . . . . . . . . . . . . . . . . Time . | . . . . . . . . . . . . . . . . . . . . . . Parts Recycled . | . . . . . . . . . . . . . . . . . . . . . . Recycled Matter . | . . . . . . . . . . . . . . . . . . . . . . Retrieved Matter . | . . . . . . . . . . . . . . . . . . . . . . Retrieved Components 1 | . . . . . . . . . . . 1 . . . . . . . . . . Parts Scanalyzed . | . . . . . . . . . . . . . . . . . . . . . . Part Schematics Acquired . | . . . . . . . . . . . . . . . . . . . . . . Parts Damaged . | . . . . . . . . . . . . . . . . . . . . . . Bothacking | -11 -10 -10 -9 -9 -9 -8 -8 -8 -7 -7 -7 -7 -7 -7 -6 -6 -6 -6 -6 -6 -6 ------------ Run | Yrd Mat Min Mat Min Exi Min Mat Gar Fac Was Fac Gar Fac Gar Fac Gar Fac Ext Cet Arc Hub Used RIF Installer 4 | . . . . . . . . 1 . . . 1 . 1 . 1 . . . . . Threat Obfuscator 1 | . . . . . . . . . . . . . . . . 1 . . . . . Signal Jammer 1 | . . . . . . . . . . . . 1 . . . . . . . . . Autooverride 1 | . . . . . . . . . . . . . . 1 . . . . . . . Robots Hacked 37 | . . . . . 4 . . . . 6 . . . 2 6 5 . 14 . . . Non-combat 3 | . . . . . 3 . . . . . . . . . . . . . . . . Combat 34 | . . . . . 1 . . . . 6 . . . 2 6 5 . 14 . . . Autooverrided 5 | . . . . . . . . . . . . . . . . . . 5 . . . Robot Hacks Applied 37 | . . . . . 4 . . . . 8 . . . 2 7 5 . 11 . . . parse_system 9 | . . . . . 4 . . . . 2 . . . . 1 . . 2 . . . ignore_targets 6 | . . . . . . . . . . 6 . . . . . . . . . . . find_garrison 1 | . . . . . . . . . . . . . . . 1 . . . . . . show_paths 1 | . . . . . . . . . . . . . . . . . . 1 . . . amplify_resonance 7 | . . . . . . . . . . . . . . . 4 2 . 1 . . . reboot_system 1 | . . . . . . . . . . . . . . . . 1 . . . . . overwrite_iff 1 | . . . . . . . . . . . . . . . . . . 1 . . . formatsys_high 11 | . . . . . . . . . . . . . . 2 1 2 . 6 . . . Relay Couplers Released 28 | . . . . . . . . 5 . . . 5 . 13 . 5 . . . . . Machine Destruction 28 | . . . . . . . . 5 . . . 5 . 13 . 5 . . . . . Attached 15 | . . . . . . . . 1 . . . 2 . 2 2 5 . 3 . . . Fabnet Peak Effective % . | . . . . . . . . . . . . . . . . . . . . . . Robots Rewired 24 | . . . . . . . . . . . . 4 . 3 . . . 17 . . . Allies Hacked . | . . . . . . . . . . . . . . . . . . . . . . Hacks Repelled . | . . . . . . . . . . . . . . . . . . . . . . Allies | -11 -10 -10 -9 -9 -9 -8 -8 -8 -7 -7 -7 -7 -7 -7 -6 -6 -6 -6 -6 -6 -6 -------- Run | Yrd Mat Min Mat Min Exi Min Mat Gar Fac Was Fac Gar Fac Gar Fac Gar Fac Ext Cet Arc Hub Total Allies 74 | . . 3 . . . . . . . 18 . 6 . 7 1 2 . 32 5 . . Largest Group 18 | . . 3 3 . . . . . . 18 13 13 5 6 4 1 1 13 12 12 8 Highest-Rated Group 799 | . . 40 37 . . . . . . 434 364 364 151 208 176 85 85 510 799 799 557 Highest-Rated Ally 159 | . . 16 16 . . . . . . 35 35 95 95 80 80 85 85 159 159 159 96 Total Orders . | . . . . . . . . . . . . . . . . . . . . . . Ally Attacks 545 | . . 21 26 . . . . . . 110 . 75 17 29 10 6 5 121 66 24 35 Total Damage 16993 | . . 197 278 . . . . . . 3234 . 3097 676 818 980 271 567 3386 1600 817 1072 Kills 127 | . . 6 5 . . . . . . 11 . 33 7 11 6 3 5 22 8 3 7 Allies Corrupted 5 | . . . . . . . . . . . . . 1 . 1 . . . . . 3 Allies Melted . | . . . . . . . . . . . . . . . . . . . . . . Intel | -11 -10 -10 -9 -9 -9 -8 -8 -8 -7 -7 -7 -7 -7 -7 -6 -6 -6 -6 -6 -6 -6 ------- Run | Yrd Mat Min Mat Min Exi Min Mat Gar Fac Was Fac Gar Fac Gar Fac Gar Fac Ext Cet Arc Hub Active Infowar (turns) 9778 | 37 216 759 1055 481 551 647 99 1144 286 565 511 2207 769 451 . . . . . . . Seismic 9778 | 37 216 759 1055 481 551 647 99 1144 286 565 511 2207 769 451 . . . . . . . Robot Analysis Total . | . . . . . . . . . . . . . . . . . . . . . . Derelict Logs Recovered 4 | . . 2 . 2 . . . . . . . . . . . . . . . . . Drone Launches . | . . . . . . . . . . . . . . . . . . . . . . Drone Recoveries . | . . . . . . . . . . . . . . . . . . . . . . Exploration | -11 -10 -10 -9 -9 -9 -8 -8 -8 -7 -7 -7 -7 -7 -7 -6 -6 -6 -6 -6 -6 -6 ------------- Run | Yrd Mat Min Mat Min Exi Min Mat Gar Fac Was Fac Gar Fac Gar Fac Gar Fac Ext Cet Arc Hub Turns Passed 15989 | 183 216 759 1099 481 551 647 99 1286 287 565 511 2207 769 1605 594 1139 633 1091 438 685 144 Spaces Moved 7153 | 98 118 432 528 287 371 441 52 458 105 218 219 783 304 602 327 493 372 465 184 236 60 Core 24 | 23 . . . . . . . . . . . . . . . . . 1 . . . Treads 5006 | 75 118 432 528 243 . . . 82 105 218 219 783 304 602 327 493 31 . 150 236 60 Legs 173 | . . . . . . . . . . . . . . . . . . 139 34 . . Wheels 1950 | . . . . 44 371 441 52 376 . . . . . . . . 341 325 . . . Hover . | . . . . . . . . . . . . . . . . . . . . . . Flight . | . . . . . . . . . . . . . . . . . . . . . . Fastest Speed 50 | 50 160 160 160 145 145 145 145 160 200 200 220 160 220 220 160 160 145 120 120 160 160 Average Speed 177 | 134 160 160 160 157 145 145 155 174 200 207 220 214 239 220 160 167 152 162 153 160 160 Slowest Speed 1800 | 160 160 160 160 160 145 145 160 240 200 220 220 240 240 220 160 240 240 1800 240 160 160 Overloaded Moves . | . . . . . . . . . . . . . . . . . . . . . . Propulsion Burnouts . | . . . . . . . . . . . . . . . . . . . . . . Robots Hopped . | . . . . . . . . . . . . . . . . . . . . . . Potential Cave-ins . | . . . . . . . . . . . . . . . . . . . . . . Cave-ins Triggered . | . . . . . . . . . . . . . . . . . . . . . . Exploration Rate (%) 48 | 6 30 97 53 67 70 82 9 66 5 90 9 92 11 89 12 58 11 69 64 78 9 Regions Visited 21 Branch Regions 8 Pre-discovered Areas 2 | . . 1 . . 1 . . . . . . . . . . . . . . . . Known Exits Taken 6 | . 1 . 1 . . . 1 . . . 1 . 1 . 1 . . . . . . Unknown Exits Taken 9 | 1 . 1 . 1 1 1 . . . . . . . . . . 1 1 1 1 . Scrap Searched 4 | . . 2 . 1 . 1 . . . . . . . . . . . . . . . Spaces Dug 26 | . . . . . . . . . . 1 . . 4 . . 19 . . . . 2 Terrain Destroyed 261 | . . . . . . . 14 81 . 2 . 4 4 12 15 26 32 1 2 27 41 Melee . | . . . . . . . . . . . . . . . . . . . . . . Projectile 65 | . . . . . . . . . . 2 . 4 3 12 . 3 . . 2 27 12 AOE 194 | . . . . . . . 14 81 . . . . . . 15 23 32 . . . 29 Terrain Rammed . | . . . . . . . . . . . . . . . . . . . . . . Walls Destroyed . | . . . . . . . . . . . . . . . . . . . . . . Machines Disabled . | . . . . . . . . . . . . . . . . . . . . . . Actions | -11 -10 -10 -9 -9 -9 -8 -8 -8 -7 -7 -7 -7 -7 -7 -6 -6 -6 -6 -6 -6 -6 --------- Run | Yrd Mat Min Mat Min Exi Min Mat Gar Fac Was Fac Gar Fac Gar Fac Gar Fac Ext Cet Arc Hub Total 9459 | 128 146 468 680 304 385 446 61 770 149 329 241 1149 330 763 381 720 424 689 329 486 81 Wait 1056 | . 10 18 48 4 . 3 . 162 13 78 15 131 12 51 9 122 38 49 87 205 1 Move 7137 | 97 117 431 527 286 370 440 52 457 105 217 219 782 304 601 327 492 371 464 183 235 60 Hop . | . . . . . . . . . . . . . . . . . . . . . . Pick Up 166 | 13 8 3 19 4 4 . . 13 3 4 1 14 1 11 7 11 1 25 22 2 . Fast Attach 27 | . 1 . 2 . . . . 1 . 2 . 3 3 1 . 4 1 . 1 8 . Attach 89 | 7 1 . 5 1 1 1 1 4 2 2 . 6 . 6 9 8 . 25 8 . 2 Detach 16 | . . . . 2 2 . . . . . . 3 . 1 2 1 . 4 1 . . Swap 79 | . 1 . 12 1 . 1 2 8 2 6 1 11 . 4 3 4 3 14 4 . 2 Drop 126 | . 7 . 15 . 4 . . 12 1 9 1 15 3 9 2 9 3 14 15 7 . Fire 701 | 11 1 16 52 6 . 1 6 113 21 2 4 143 7 75 22 67 7 94 8 29 16 Melee 13 | . . . . . 4 . . . . 9 . . . . . . . . . . . Ram . | . . . . . . . . . . . . . . . . . . . . . . Kick . | . . . . . . . . . . . . . . . . . . . . . . Crush . | . . . . . . . . . . . . . . . . . . . . . . Escape Stasis 19 | . . . . . . . . . 2 . . 11 . 4 . 2 . . . . . Rewire 30 | . . . . . . . . . . . . 30 . . . . . . . . . Trap . | . . . . . . . . . . . . . . . . . . . . . . Miscellaneous . | . . . . . . . . . . . . . . . . . . . . . . Route ------- -11/Scrapyard -10/Materials (discovered 2 exits: *Mat / *Min) -10/Mines (discovered 3 exits: *Mat x2 / [*Sub]) -9/Materials (discovered 2 exits: *Mat / *Min) -9/Mines (discovered 2 exits: *Mat / *Exi) -9/Exiles -8/Mines (discovered 2 exits: *Mat x2) -8/Materials (discovered 2 exits: Fac / Gar) -8/Garrison (discovered 3 exits: *Fac x3) -7/Factory (discovered 2 exits: *Sto x2) -7/Waste -7/Factory -7/Garrison (discovered 3 exits: *Fac x3) -7/Factory -7/Garrison (discovered 3 exits: *Fac x3) -6/Factory -6/Garrison (discovered 3 exits: *Fac x3) -6/Factory (discovered 2 exits: [*Low] / *Ext) -6/Extension (discovered 2 exits: [*Fac] / *Cet) -6/Cetus (discovered 2 exits: [*Fac] / [*Arc]) -6/Archives (discovered 3 exits: [*Fac] / *Hub x2) -6/Hub_04(d) History --------- Turn | Location | Event 5 | -11/Scrapyard | Discovered new exit (range 16) 184 | -11/Scrapyard | Entered Materials 301 | -10/Materials | Build established: Mutant 324 | -10/Materials | Discovered new exit (range 9) 337 | -10/Materials | Identified exit to Mines 400 | -10/Materials | Entered Mines 492 | -10/Mines | Assisted by bots powering up and referring to "LRC-V3" 571 | -10/Mines | Learned Materials stockpile data 608 | -10/Mines | Met a Derelict who couldn't figure out how to use a Trap Extractor 737 | -10/Mines | Learned location of Recycling (-7) 803 | -10/Mines | Discovered new exit (range 11) 811 | -10/Mines | Received a Rocket Launcher from a helpful Derelict 895 | -10/Mines | Discovered new exit (range 9) 1116 | -10/Mines | Discovered new exit (range 15) 1159 | -10/Mines | Entered Materials 1159 | -9/Materials | Accompanied by 3 allies 1159 | -9/Materials | Evolved 2 slots: Utility x2 1920 | -9/Materials | Discovered new exit (range 13) 1952 | -9/Materials | Identified exit to Mines 2258 | -9/Materials | Entered Mines 2270 | -9/Mines | Discovered new exit (range 11) 2635 | -9/Mines | Met a Derelict shopkeep closing up shop 2696 | -9/Mines | Deemed a non-threat by the Exiles lab entrance 2696 | -9/Mines | Discovered new exit (range 5) 2739 | -9/Mines | Entered Exiles 2775 | -9/Exiles | Met 8R-AWN 2802 | -9/Exiles | Met EX-HEX 2871 | -9/Exiles | Learned location of Zion (-6) 2872 | -9/Exiles | Met EX-DEC 3072 | -9/Exiles | Met EX-BIN 3094 | -9/Exiles | Aligned with FarCom system 3095 | -9/Exiles | Given EX-Vault access code 3128 | -9/Exiles | Opened EX-Vault 3140 | -9/Exiles | Found Cloak of Protection 3148 | -9/Exiles | Found Skeleton Box 3156 | -9/Exiles | Found XL Autogun Array 3186 | -9/Exiles | Warned to stay clear of 0b10 Research branches 3278 | -9/Exiles | Discovered new exit (range 10) 3290 | -9/Exiles | Stole three prototypes: Cloak of Protection, Skeleton Box, XL Autogun Array 3290 | -9/Exiles | Entered Mines 3496 | -8/Mines | Discovered new exit (range 7) 3841 | -8/Mines | Discovered new exit (range 5) 3937 | -8/Mines | Entered Materials 3937 | -8/Materials | Evolved 2 slots: Utility x2 3938 | -8/Materials | Identified exit to Factory 4036 | -8/Materials | Identified exit to Garrison 4036 | -8/Materials | Entered Garrison 4132 | -8/Garrison | Triggered checkpoint 4141 | -8/Garrison | Garrison Relay disabled 4198 | -8/Garrison | Installed Relay Interface Framework 4398 | -8/Garrison | Triggered checkpoint 4453 | -8/Garrison | Triggered checkpoint 4604 | -8/Garrison | Discovered exit to Factory (range 12) 4612 | -8/Garrison | Discovered exit to Factory (range 16) 4612 | -8/Garrison | Discovered exit to Factory (range 42) 4612 | -8/Garrison | Discovered exit to Factory (range 62) 4681 | -8/Garrison | Triggered checkpoint 4710 | -8/Garrison | Triggered checkpoint 4740 | -8/Garrison | Destroyed 10 combat bots 4812 | -8/Garrison | Phase Generator disabled 4996 | -8/Garrison | Triggered checkpoint 5322 | -8/Garrison | Entered Factory 5322 | -7/Factory | Evolved 2 slots: Propulsion x1, Utility x1 5323 | -7/Factory | Identified exit to Storage 5324 | -7/Factory | FarCom data flow suspended 5565 | -7/Factory | Discovered exit to Storage (range 14) 5609 | -7/Factory | Sucked down chute 5609 | -7/Factory | Entered Waste 5617 | -7/Waste | Spotted C-40 Crusher 5657 | -7/Waste | Spotted C-40 Crusher 5661 | -7/Waste | Spotted C-40 Crusher 5666 | -7/Waste | Spotted C-40 Crusher 5710 | -7/Waste | Crushed by Compactor (0 parts destroyed, 1 dropped) 5760 | -7/Waste | Spotted C-40 Crusher 5775 | -7/Waste | Spotted C-40 Crusher 5918 | -7/Waste | Warlord forces began an assault 5945 | -7/Waste | Allies destroyed C-40 Crusher 6020 | -7/Waste | Allies destroyed C-40 Crusher 6040 | -7/Waste | Allies destroyed C-40 Crusher 6108 | -7/Waste | Discovered new exit (range 11) 6174 | -7/Waste | Entered Factory 6174 | -7/Factory | Accompanied by 13 allies 6670 | -7/Factory | Identified exit to Garrison 6685 | -7/Factory | Entered Garrison 6685 | -7/Garrison | Accompanied by 13 allies 6731 | -7/Garrison | Triggered checkpoint 6759 | -7/Garrison | Garrison Relay disabled 7113 | -7/Garrison | Triggered checkpoint 7159 | -7/Garrison | Lost 4 allies 7161 | -7/Garrison | Triggered checkpoint 7193 | -7/Garrison | Triggered checkpoint 7232 | -7/Garrison | Lost 3 allies 7529 | -7/Garrison | Triggered checkpoint 7559 | -7/Garrison | Discovered new exit (range 13) 7577 | -7/Garrison | Triggered checkpoint 7609 | -7/Garrison | Discovered new exit (range 3) 7705 | -7/Garrison | Found embedded Infiltrators 7829 | -7/Garrison | Expanded RIF knowledge: Signal Jamming 8053 | -7/Garrison | Triggered checkpoint 8489 | -7/Garrison | Discovered new exit (range 14) 8500 | -7/Garrison | Build established: Scavenger-Mutant 8892 | -7/Garrison | Entered Factory 8892 | -7/Factory | Accompanied by 5 allies 9016 | -7/Factory | Lost 3 allies 9661 | -7/Factory | Identified exit to Garrison 9661 | -7/Factory | Entered Garrison 9737 | -7/Garrison | Triggered checkpoint 9805 | -7/Garrison | Garrison Relay disabled 9928 | -7/Garrison | Build established: Bothacker-Mutant 10143 | -7/Garrison | Lost 3 parts (3u) 10155 | -7/Garrison | Destroyed 7 combat bots 10159 | -7/Garrison | Triggered checkpoint 10217 | -7/Garrison | Triggered checkpoint 10275 | -7/Garrison | Garrison Relay disabled 10283 | -7/Garrison | Found embedded Infiltrators 10309 | -7/Garrison | P-60 Hacker assimilated allied R8-L1Y(x) 10384 | -7/Garrison | Discovered new exit (range 13) 10453 | -7/Garrison | Triggered checkpoint 10611 | -7/Garrison | Expanded RIF knowledge: Autooverride 10621 | -7/Garrison | Discovered new exit (range 12) 10631 | -7/Garrison | Triggered checkpoint 10683 | -7/Garrison | Triggered checkpoint 10691 | -7/Garrison | Garrison Relay disabled 11073 | -7/Garrison | Triggered checkpoint 11201 | -7/Garrison | Discovered new exit (range 8) 11266 | -7/Garrison | Entered Factory 11266 | -6/Factory | Accompanied by 4 allies 11266 | -6/Factory | Evolved 2 slots: Propulsion x1, Utility x1 11411 | -6/Factory | Lost 3 allies 11860 | -6/Factory | Identified exit to Garrison 11860 | -6/Factory | Entered Garrison 11941 | -6/Garrison | Triggered checkpoint 11955 | -6/Garrison | Triggered checkpoint 11988 | -6/Garrison | Triggered checkpoint 12015 | -6/Garrison | Destroyed 7 combat bots 12042 | -6/Garrison | Spotted B-75 Beast 12046 | -6/Garrison | Assimilated Beast 5a with formatsys_high 12070 | -6/Garrison | Expanded RIF knowledge: Threat Obfuscation 12149 | -6/Garrison | Discovered new exit (range 11) 12243 | -6/Garrison | Triggered checkpoint 12271 | -6/Garrison | Heavy support dispatched to Factory 12326 | -6/Garrison | Triggered checkpoint 12360 | -6/Garrison | Garrison Relay disabled 12399 | -6/Garrison | Heavy support dispatched to Factory 12420 | -6/Garrison | Discovered new exit (range 12) 12534 | -6/Garrison | Found Prototype Device 12687 | -6/Garrison | Build established: Botlord-Mutant 12766 | -6/Garrison | Discovered new exit (range 14) 12852 | -6/Garrison | Triggered checkpoint 12999 | -6/Garrison | Entered Factory 12999 | -6/Factory | Accompanied by 1 ally 13096 | -6/Factory | Build established: Bothacker-Mutant 13281 | -6/Factory | Discovered new exit (range 12) 13590 | -6/Factory | Discovered new exit (range 15) 13632 | -6/Factory | Entered Extension 13632 | -6/Extension | Accompanied by 1 ally 13733 | -6/Extension | Remotely autohacked Sealed Heavy Doors 13733 | -6/Extension | Rescued a captive Derelict 13785 | -6/Extension | Remotely autohacked Sealed Heavy Doors 13786 | -6/Extension | Rescued a captive Derelict 14010 | -6/Extension | Spotted B-75 Beast 14021 | -6/Extension | Identified Active Sensor Suite 14038 | -6/Extension | Spotted B-75 Beast 14057 | -6/Extension | System corruption reached 10% 14070 | -6/Extension | Lost 5 parts (2p2n1u) 14079 | -6/Extension | Destroyed B-75 Beast 14120 | -6/Extension | Core integrity fell below 50% 14121 | -6/Extension | Lost 12 allies 14127 | -6/Extension | Destroyed B-75 Beast 14134 | -6/Extension | Lost 3 parts (3w) 14293 | -6/Extension | Energy Cycler disabled 14295 | -6/Extension | Rescued A7 14682 | -6/Extension | Discovered new exit (range 10) 14683 | -6/Extension | Discovered new exit (range 6) 14723 | -6/Extension | Entered Cetus 14723 | -6/Cetus | Accompanied by 12 allies (A7) 14728 | -6/Cetus | Acquired a Cetus Manufacturing Module code from A7 14739 | -6/Cetus | Spotted Cetus Guard 14739 | -6/Cetus | Spotted Cetus Guard 14747 | -6/Cetus | Spotted Cetus Guard 14748 | -6/Cetus | Spotted Cetus Guard 14752 | -6/Cetus | Allies destroyed Cetus Guard 14762 | -6/Cetus | Allies destroyed Cetus Guard 14764 | -6/Cetus | Allies destroyed Cetus Guard 14768 | -6/Cetus | Allies destroyed Cetus Guard 14792 | -6/Cetus | Lost 4 allies 14815 | -6/Cetus | Build established: Commander-Mutant 14867 | -6/Cetus | Started Cetus Manufacturing Module 14883 | -6/Cetus | Escorted A7 to Cetus Mainframe 14892 | -6/Cetus | Manufactured an Enhanced Grunt 14901 | -6/Cetus | Discovered new exit (range 15) 14917 | -6/Cetus | Manufactured an Enhanced Grunt 14931 | -6/Cetus | Spotted Cetus Guard 14931 | -6/Cetus | Spotted Cetus Guard 14937 | -6/Cetus | Spotted Cetus Guard 14938 | -6/Cetus | Spotted Cetus Guard 14941 | -6/Cetus | Allies destroyed Cetus Guard 14942 | -6/Cetus | Manufactured an Enhanced Grunt 14943 | -6/Cetus | Destroyed Cetus Guard 14957 | -6/Cetus | Destroyed Cetus Guard 14958 | -6/Cetus | Allies destroyed Cetus Guard 14962 | -6/Cetus | Discovered new exit (range 16) 14967 | -6/Cetus | Manufactured an Enhanced Grunt 14973 | -6/Cetus | Met Revision 17 14992 | -6/Cetus | Manufactured an Enhanced Grunt 15013 | -6/Cetus | System corruption reached 30% 15161 | -6/Cetus | Entered Archives 15161 | -6/Archives | Accompanied by 12 allies (A7) 15166 | -6/Archives | Received a hacking code to weaken MAIN.C 15245 | -6/Archives | Discovered new exit (range 16) 15339 | -6/Archives | Discovered new exit (range 16) 15431 | -6/Archives | Discovered new exit (range 15) 15481 | -6/Archives | Build established: Scavenger-Mutant 15846 | -6/Archives | Entered Hub_04(d) 15846 | -6/Hub_04(d) | Accompanied by 8 allies 15916 | -6/Hub_04(d) | Network Hub disabled 15934 | -6/Hub_04(d) | Spotted Lightning 15934 | -6/Hub_04(d) | Spotted Lightning 15934 | -6/Hub_04(d) | Spotted Lightning 15943 | -6/Hub_04(d) | Allies destroyed Lightning 15951 | -6/Hub_04(d) | Spotted Lightning 15955 | -6/Hub_04(d) | Spotted Lightning 15958 | -6/Hub_04(d) | Spotted Lightning 15965 | -6/Hub_04(d) | Spotted Lightning 15965 | -6/Hub_04(d) | Spotted Lightning 15965 | -6/Hub_04(d) | Spotted Lightning 15971 | -6/Hub_04(d) | Destroyed Lightning 15980 | -6/Hub_04(d) | Lost 8 allies 15990 | -6/Hub_04(d) | Self-destructed Last Messages --------------- 15984_ Slug penetrates Lightning. 15985_ EMDS Slug penetrates Lightning. 15986_ Penetrated by Slug. 15986_ Penetrated by EMDS Slug. 15987_ System corrupted: Adv. KE Penetrator jammed. 15987_ Slug penetrates I-47 Archangel. 15987_ I-47 Archangel suffers critical hit (Destroy). 15987_ I-47 Archangel destroyed. 15988_ Penetrated by EMDS Slug. 15988_ Slug penetrates Wall. 15989_ The unstable cave ceiling collapses. 15989_ EMDS Slug penetrates Lightning. 15989_ Penetrated by Slug. 15989_ Penetrated by EMDS Slug. 15989_ Adv. KE Penetrator destroyed. 15990_ Wall collapses. 15990_ Penetrated by EMDS Slug. 15990_ Centrium Medium Armor Plating destroyed. 15990_ Penetrated by EMDS Slug. 15990_ U-05 Engineer destroyed. Map ----- +----------------------------------------------------+ | ?????????????????????????????????????????????????? | | ??????????????????????????#####??????????????????? | | ??????????????????????????# #??????????????????? | | ??????????????????????????# #??????????????????? | | ??????????????????????????# #??????????????????? | | ??????????????????????????# #??????????????????? | | ??????????????????????????# #??????????????????? | | ??????????????????????????# #??????????????????? | | ??????????????????????????# #??????????????????? | | ??????????????????????????# #??????????????????? | | ??????????????????????????# #??????????????????? | | ??????????????????????????# #??????????????????? | | ??????????????????????????# #??????????????????? | | ???????????????#######????# #??????????????????? | | ?????????????? i ?????# #??????????????????? | | ?????????????? ?????# #??????????????????? | | ??????????????? ??????# #?##???##??????????? | | ???????????????? ??????# #? ??! #??????????? | | ????????????????## ######## # !!! #??????????? | | ??????????????### # # !!! #??????????? | | ??????????????# ; " # + #??????????? | | ??????????????# h " # # #??????????? | | ??????????????# % # # #??????????? | | ??????######"## Y==%== # [# #??????????? | | ?? ] !%! =k h=!%=%!# ;########??????????? | | ?? !%!!==]%!! h%! =@%!=!#????##????????????? | | ?????########## h=! h!h%[#?? ????????????? | | ??????????????# !% #!!%%%!#?"""" ????????????? | | ????????????### ! # *h==# """" ????????????? | | ????????? =%] %! %%*% ; """" #???????????? | | ????????? !* !% %*!= h """ #???????????? | | ????????? = ; w #???????????? | | ??????????###########+#########h"""" + ???????? | | ????????????????? ??????????? """" #? ??????? | | ????????????????# ?????????????"""" #???????????? | | ????????????????# ???????????????""" ????????????? | | ????????????????#????????????????? ?????????????? | | ?????????????????????????????????????????????????? | | ?????????????????????????????????????????????????? | | ?????????????????????????????????????????????????? | | ?????????????????????????????????????????????????? | | ?????????????????????????????????????????????????? | | ?????????????????????????????????????????????????? | | ?????????????????????????????????????????????????? | | ?????????????????????????????????????????????????? | | ?????????????????????????????????????????????????? | | ?????????????????????????????????????????????????? | | ?????????????????????????????????????????????????? | | ?????????????????????????????????????????????????? | | ?????????????????????????????????????????????????? | +----------------------------------------------------+ Best States ------------- Heat Dissipation 75 Coolant Potential 65 Energy Generation 25 Energy Capacity 350 Matter Stores 300 Matter Capacity 300 Sight Range 16 Terrain Scan Density 10 Additional Mass Support 12 Base Temperature (-) 200 Armor Coverage 1350 Phase Shifting 10 Evasion (%) 55 Recoil Reduction 4 Salvage Targeting 2 Offensive Hacking 24 Relay Coupler Types 3 Relay Coupler Value 83 Trap Extractor Capacity 6 Item Schematics ----------------- None Robot Schematics ------------------ B-36 Bruiser | -7/Factory | Downloaded Fabricated ------------ Nothing Repaired ---------- Nothing Studied --------- Lgt. Treads | -9/Materials | Hacked Imp. Treads | -9/Materials | Hacked Coil Gun | -7/Factory | Hacked Alien Tech Used ----------------- None Achievements -------------- Some Acronyms Are Better Than Others Challenges ------------ None Game ------ Seed MakeshiftVisualNanosword Manual? 0 Play Time 01:32:07 Cumulative 475.7 hours Start 2025.11.05 @ 23:43:25 End 2025.11.06 @ 02:22:09 Sessions 2 Manual Loads 0 Difficulty Rogue Special Mode None Game No. 603 Rogue 603 Adventurer 0 Explorer 0 Win Type - Total 14 Types 6/0/2/2/1/0/2/1/0/0 Lore% 90 Gallery% 85 Achievement% 63 Wizard Run 0 Options --------- Layout 0 ASCII 0 Keyboard 0 Movement Mouse Keybinds 0 Fullscreen 1 Font 24/Terminus Map View 76x50 Zoom Use 0% Tactical HUD 1 Map Filters NONE Filters NONE Steam 1 RUN: d08f47cf-c992-4db8-b2a6-3dc4ca118e4a